[Event "GER-chT Youth Countries 2020"]
[Site "Berlin"]
[Date "2020.10.01"]
[Round "3"]
[White "Nitsche, Nikolai"]
[Black "Reitz, Theresa"]
[Result "1/2-1/2"]
[ECO "A48"]
[WhiteElo "1721"]
[BlackElo "1886"]
[Annotator "NA"]
[PlyCount "103"]
[EventDate "2020.09.30"]
[EventType "team-tourn"]
[EventRounds "7"]
[EventCountry "GER"]
[SourceTitle "playchess.com"]
[Source "ChessBase"]
[SourceQuality "1"]
[TimeControl "30/5400+30:0"]

1. d4 {[%emt 0:00:02]} Nf6 {[%emt 0:00:00]} 2. Nf3 {[%emt 0:01:25]} g6 {[%emt 0:00:00]} 3. Bf4 {[%emt 0:00:13]} Bg7 {[%emt 0:00:20]} 4. e3 {[%emt 0:00:54]} d5 {[%emt 0:00:35]} 5. Bd3 {[%emt 0:00:45]} O-O {[%emt 0:00:53]} 6. O-O {[%emt 0:01:34]} c5 {[%emt 0:05:32]} 7. c3 {[%emt 0:01:12]} b6 {[%emt 0:01:56]} 8. Nbd2 {[%emt 0:00:56]} Nc6 {[%emt 0:00:47]} 9. h3 {[%emt 0:00:12]} Bb7 {[%emt 0:00:28]} 10. Ne5 {[%emt 0:03:37]} Nd7 {[%emt 0:02:06]} 11. Nxc6 {[%emt 0:03:50]} Bxc6 {[%emt 0:00:13]} 12. Bh2 {[%emt 0:00:16]} e5 {[%emt 0:01:38]} 13. dxe5 {[%emt 0:02:26]} Nxe5 {[%emt 0:00:44]} 14. Be2 {[%emt 0:00:20]} Qe7 {[%emt 0:03:08]} 15. Nf3 {[%emt 0:02:02]} Nc4 {[%emt 0:02:18]} 16. Bxc4 {[%emt 0:02:29]} dxc4 {[%emt 0:01:07]} 17. Bd6 {[%emt 0:00:09]} Bxf3 {[%emt 0:01:00]} 18. Bxe7 {[%emt 0:00:07]} Bxd1 {[%emt 0:00:29]} 19. Raxd1 {[%emt 0:00:03]} Rfc8 {[%emt 0:01:28]} 20. Rd7 {[%emt 0:03:21]} b5 {[%emt 0:02:10]} 21. Rd5 {[%emt 0:05:11]} Bf8 {[%emt 0:12:58]} 22. Bf6 {[%emt 0:00:37]} a5 {[%emt 0:01:42]} 23. Rfd1 {[%emt 0:10:52]} Ra6 {[%emt 0:04:46]} 24. Be5 {[%emt 0:05:25]} b4 {[%emt 0:04:38]} 25. a3 {[%emt 0:07:54]} bxa3 {[%emt 0:09:38]} 26. bxa3 f6 {[%emt 0:05:02]} 27. Bd6 {[%emt 0:01:17]} Rb6 {[%emt 0:00:54]} 28. Bxf8 {[%emt 0:03:59]} Kxf8 {[%emt 0:01:53]} 29. Rd7 {[%emt 0:00:55]} Rcb8 {[%emt 0:03:25]} 30. Rc7 {[%emt 0:04:48]} Rb1 {[%emt 0:01:44]} 31. Rf1 {[%emt 1:30:15]} R1b3 {[%emt 1:34:20]} 32. Rd1 {[%emt 0:05:48]} Rb1 {[%emt 0:03:39]} 33. Rf1 {[%emt 0:00:16]} Rxf1+ {[%emt 0:18:52]} 34. Kxf1 {[%emt 0:00:09]} Rb3 {[%emt 0:00:09]} 35. Rxc5 {[%emt 0:00:21]} Rxa3 {[%emt 0:00:06]} 36. Rxc4 {[%emt 0:00:04]} Ra2 {[%emt 0:00:31]} 37. Rc7 {[%emt 0:00:27]} h5 {[%emt 0:02:55]} 38. g3 {[%emt 0:00:57]} Ke8 {[%emt 0:01:38]} 39. Ra7 {[%emt 0:02:16]} a4 {[%emt 0:01:50]} 40. c4 {[%emt 0:00:20]} Kd8 {[%emt 0:00:48]} 41. c5 {[%emt 0:00:24]} Kc8 {[%emt 0:00:44]} 42. c6 {[%emt 0:00:13]} Kb8 {[%emt 0:00:51]} 43. Rb7+ {[%emt 0:00:59]} Kc8 {[%emt 0:00:14]} 44. Ra7 {[%emt 0:02:53]} a3 {[%emt 0:00:00]} 45. c7 {[%emt 0:00:00]} Kd7 {[%emt 0:00:00]} 46. Kg2 {[%emt 0:00:00]} Kc8 {[%emt 0:00:00]} 47. e4 {[%emt 0:00:00]} Kd7 {[%emt 0:00:00]} 48. h4 {[%emt 0:00:00]} Kc8 {[%emt 0:00:00]} 49. Kf3 {[%emt 0:00:00]} Ra1 {[%emt 0:00:00]} 50. Kg2 {[%emt 0:00:00]} Ra2 {[%emt 0:00:00]} 51. Kf3 {[%emt 0:00:00]} Ra1 {[%emt 0:00:00]} 52. g4 {[%emt 0:00:00]} 1/2-1/2

[Event "GER-chT Youth Countries 2020"]
[Site "Berlin"]
[Date "2020.10.01"]
[Round "3"]
[White "Hoppstaedter, Daniel"]
[Black "Zackrisson, Peter"]
[Result "0-1"]
[ECO "A70"]
[WhiteElo "1712"]
[BlackElo "1947"]
[Annotator "ChessBase"]
[PlyCount "54"]
[EventDate "2020.09.30"]
[EventType "team-tourn"]
[EventRounds "7"]
[EventCountry "GER"]
[SourceTitle "playchess.com"]
[Source "ChessBase"]
[SourceQuality "1"]
[TimeControl "30/5400+30:0"]

1. d4 {[%emt 0:00:00]} Nf6 {[%emt 0:00:00]} 2. c4 {[%emt 0:00:00]} c5 {[%emt 0:00:00]} 3. d5 {[%emt 0:00:00]} e6 {[%emt 0:00:00]} 4. Nc3 {[%emt 0:00:00]} exd5 {[%emt 0:00:03]} 5. cxd5 {[%emt 0:00:10]} d6 {[%emt 0:00:09]} 6. e4 {[%emt 0:00:56]} g6 {[%emt 0:00:13]} 7. Nf3 {[%emt 0:01:16]} Bg4 {[%emt 0:01:20]} 8. Bg5 {[%emt 0:03:44]} Bg7 {[%emt 0:00:42]} 9. Qa4+ {[%emt 0:00:53]} Bd7 {[%emt 0:09:00]} 10. Qb3 {[%emt 0:02:43]} Qc7 {[%emt 0:05:40]} 11. Bc4 {[%emt 0:12:36]} O-O {[%emt 0:03:07]} 12. O-O-O {[%emt 0:00:40]} Ng4 {[%emt 0:08:13]} 13. Bh4 {[%emt 0:01:38]} a6 {[%emt 0:01:17]} 14. a4 {[%emt 0:00:56]} b5 {[%emt 0:00:49]} 15. axb5 {[%emt 0:00:19]} axb5 {[%emt 0:00:09]} 16. Nxb5 {[%emt 0:00:41]} Bxb5 {[%emt 0:00:28]} 17. Bxb5 {[%emt 0:00:52]} Na6 {[%emt 0:03:22]} 18. h3 {[%emt 0:15:46]} Ne5 {[%emt 0:16:00]} 19. Nd2 {[%emt 0:06:02]} Nb4 {[%emt 0:04:26]} 20. f4 {[%emt 0:05:38]} Rfb8 {[%emt 0:09:04]} 21. fxe5 {[%emt 0:01:13]} Ra1+ {[%emt 0:01:20]} 22. Nb1 {[%emt 0:00:21]} Bh6+ {[%emt 0:00:08]} 23. Rd2 {[%emt 0:00:39]} Rxb5 {[%emt 0:00:08]} 24. exd6 {[%emt 0:04:46]} Qxd6 {[%emt 0:01:50]} 25. Qc4 {[%emt 0:00:57]} Qb6 {[%emt 0:01:59]} 26. b3 {[%emt 0:03:47]} Rba5 {[%emt 0:08:15]} 27. g4 {[%emt 0:01:43]} Rxb1+ {[%emt 0:00:21]} 0-1

[Event "GER-chT Youth Countries 2020"]
[Site "Berlin"]
[Date "2020.10.01"]
[Round "3"]
[White "Bildat, Emilia"]
[Black "Junker, Magnus"]
[Result "0-1"]
[ECO "A15"]
[WhiteElo "1704"]
[BlackElo "2093"]
[Annotator "ChessBase"]
[PlyCount "78"]
[EventDate "2020.09.30"]
[EventType "team-tourn"]
[EventRounds "7"]
[EventCountry "GER"]
[SourceTitle "playchess.com"]
[Source "ChessBase"]
[SourceQuality "1"]
[TimeControl "30/5400+30:0"]

1. c4 {[%emt 0:00:00]} Nf6 {[%emt 0:00:00]} 2. g3 {[%emt 0:00:00]} d5 {[%emt 0:00:00]} 3. cxd5 {[%emt 0:00:11]} Nxd5 {[%emt 0:00:00]} 4. Bg2 {[%emt 0:00:23]} Nc6 {[%emt 0:00:50]} 5. Nc3 {[%emt 0:00:54]} Nb6 {[%emt 0:00:27]} 6. Nf3 {[%emt 0:00:44]} g6 {[%emt 0:00:26]} 7. O-O {[%emt 0:01:00]} Bg7 {[%emt 0:00:05]} 8. d3 {[%emt 0:01:00]} O-O {[%emt 0:00:24]} 9. Be3 {[%emt 0:01:48]} h6 {[%emt 0:03:43]} 10. h4 {[%emt 0:04:19]} e5 {[%emt 0:08:25]} 11. Qd2 {[%emt 0:01:23]} Kh7 {[%emt 0:00:39]} 12. Rac1 {[%emt 0:05:04]} Nd4 {[%emt 0:00:48]} 13. Ne4 {[%emt 0:07:27]} f5 {[%emt 0:00:38]} 14. Nc5 {[%emt 0:01:10]} Nxf3+ {[%emt 0:00:09]} 15. Bxf3 {[%emt 0:00:39]} f4 {[%emt 0:00:06]} 16. gxf4 {[%emt 0:01:20]} Qxh4 {[%emt 0:00:05]} 17. Ne4 {[%emt 0:08:32]} exf4 {[%emt 0:00:36]} 18. Bxb6 {[%emt 0:02:06]} cxb6 {[%emt 0:00:10]} 19. Rc7 {[%emt 0:01:34]} Be6 20. Qc3 {[%emt 0:03:54]} Rf7 {[%emt 0:01:17]} 21. Rxf7 {[%emt 0:01:19]} Bxf7 {[%emt 0:00:06]} 22. Qc7 {[%emt 0:01:47]} Bd5 {[%emt 0:02:26]} 23. Nf6+ {[%emt 0:08:13]} Qxf6 {[%emt 0:00:06]} 24. Bxd5 {[%emt 0:00:05]} Re8 {[%emt 0:00:55]} 25. Qxb7 {[%emt 0:05:52]} Rxe2 {[%emt 0:00:38]} 26. b4 {[%emt 0:02:19]} Qg5+ {[%emt 0:01:01]} 27. Kh1 {[%emt 0:04:12]} Qh4+ {[%emt 0:00:12]} 28. Kg1 {[%emt 0:00:19]} Re5 {[%emt 0:00:55]} 29. Bg2 {[%emt 0:02:14]} h5 {[%emt 0:02:40]} 30. Rc1 {[%emt 0:04:53]} Re2 {[%emt 0:02:28]} 31. Rf1 {[%emt 1:40:38]} Rxa2 {[%emt 1:30:06]} 32. d4 {[%emt 0:00:50]} Kh6 {[%emt 0:01:59]} 33. Qe4 {[%emt 0:01:48]} Qg4 {[%emt 0:02:17]} 34. d5 {[%emt 0:01:43]} Ra3 {[%emt 0:02:24]} 35. Kh2 {[%emt 0:08:28]} f3 {[%emt 0:01:04]} 36. Qxg4 {[%emt 0:00:41]} hxg4 {[%emt 0:00:05]} 37. Bh1 {[%emt 0:00:42]} Be5+ {[%emt 0:00:06]} 38. Kg1 {[%emt 0:00:14]} Rd3 {[%emt 0:00:19]} 39. Rb1 {[%emt 0:02:07]} a5 {[%emt 0:00:45]} 0-1

[Event "GER-chT Youth Countries 2020"]
[Site "Berlin"]
[Date "2020.10.01"]
[Round "3"]
[White "Werner, Rosalie"]
[Black "Haubold, Sebastian Marcel"]
[Result "0-1"]
[ECO "C54"]
[WhiteElo "1688"]
[BlackElo "1769"]
[Annotator "NA"]
[PlyCount "94"]
[EventDate "2020.09.30"]
[EventType "team-tourn"]
[EventRounds "7"]
[EventCountry "GER"]
[SourceTitle "playchess.com"]
[Source "ChessBase"]
[SourceQuality "1"]
[TimeControl "30/5400+30:0"]

1. e4 {[%emt 0:00:00]} e5 {[%emt 0:00:00]} 2. Nf3 {[%emt 0:00:00]} Nc6 {[%emt 0:00:00]} 3. Bc4 Bc5 {[%emt 0:00:00]} 4. c3 {[%emt 0:00:00]} Nf6 {[%emt 0:00:11]} 5. d4 {[%emt 0:00:00]} exd4 {[%emt 0:00:09]} 6. e5 {[%emt 0:00:00]} d5 {[%emt 0:00:19]} 7. Bb5 {[%emt 0:00:07]} Ne4 {[%emt 0:00:31]} 8. cxd4 {[%emt 0:00:08]} Bb6 {[%emt 0:00:15]} 9. Nc3 {[%emt 0:00:07]} O-O {[%emt 0:03:19]} 10. Be3 {[%emt 0:00:09]} Bg4 {[%emt 0:02:53]} 11. h3 {[%emt 0:00:08]} Bh5 {[%emt 0:12:57]} 12. Qc2 {[%emt 0:00:12]} Bg6 13. Qb3 {[%emt 0:00:24]} Ne7 {[%emt 0:03:21]} 14. O-O {[%emt 0:00:32]} c6 {[%emt 0:01:17]} 15. Bd3 Nd2 {[%emt 0:08:15]} 16. Nxd2 {[%emt 0:01:17]} Bxd3 {[%emt 0:00:04]} 17. Rfe1 {[%emt 0:01:13]} Bg6 {[%emt 0:00:41]} 18. Ne2 {[%emt 0:05:15]} h6 {[%emt 0:05:01]} 19. Ng3 {[%emt 0:04:08]} Nf5 {[%emt 0:03:17]} 20. Nxf5 {[%emt 0:05:12]} Bxf5 {[%emt 0:00:10]} 21. Nf1 {[%emt 0:04:52]} Qh4 {[%emt 0:06:28]} 22. Ng3 {[%emt 0:03:40]} Bh7 {[%emt 0:01:19]} 23. Ne2 {[%emt 0:06:54]} f6 {[%emt 0:05:25]} 24. exf6 {[%emt 0:06:44]} Rxf6 {[%emt 0:04:11]} 25. Rf1 {[%emt 0:10:45]} Raf8 {[%emt 0:05:54]} 26. a4 {[%emt 0:06:09]} R8f7 27. a5 {[%emt 0:05:47]} Bc7 {[%emt 0:01:11]} 28. f3 Bf5 {[%emt 0:03:09]} 29. Bf2 {[%emt 0:07:38]} Qg5 {[%emt 0:05:12]} 30. g4 Bxg4 {[%emt 0:06:10]} 31. Be3 {[%emt 1:47:11]} Rxf3 {[%emt 1:30:46]} 32. Rxf3 {[%emt 0:02:46]} Rxf3 {[%emt 0:00:06]} 33. Bxg5 {[%emt 0:00:13]} Rxb3 {[%emt 0:00:07]} 34. hxg4 {[%emt 0:00:24]} hxg5 {[%emt 0:00:06]} 35. Ra2 {[%emt 0:00:37]} Rb5 {[%emt 0:00:17]} 36. a6 {[%emt 0:01:21]} b6 {[%emt 0:00:36]} 37. Kf2 {[%emt 0:01:31]} Kf7 {[%emt 0:06:19]} 38. Ke3 {[%emt 0:02:55]} Rb3+ {[%emt 0:02:00]} 39. Kd2 {[%emt 0:02:47]} Bf4+ {[%emt 0:00:28]} 40. Kc2 {[%emt 0:02:58]} Re3 {[%emt 0:00:40]} 41. Kd1 {[%emt 0:00:44]} Ke6 {[%emt 0:02:21]} 42. Ra1 {[%emt 0:02:16]} Rh3 {[%emt 0:01:55]} 43. Kc2 {[%emt 0:01:04]} Rh2 {[%emt 0:00:29]} 44. Kd3 {[%emt 0:00:26]} c5 {[%emt 0:00:47]} 45. Re1 {[%emt 0:00:00]} Kd6 {[%emt 0:00:00]} 46. b3 {[%emt 0:00:00]} Rh3+ {[%emt 0:00:00]} 47. Kc2 {[%emt 0:00:00]} Re3 {[%emt 0:00:00]} 0-1

[Event "GER-chT Youth Countries 2020"]
[Site "Berlin"]
[Date "2020.10.01"]
[Round "3"]
[White "Grabs, Peter"]
[Black "Mueller, Maximilian"]
[Result "0-1"]
[ECO "C01"]
[WhiteElo "1674"]
[BlackElo "2303"]
[Annotator "ChessBase"]
[PlyCount "50"]
[EventDate "2020.09.30"]
[EventType "team-tourn"]
[EventRounds "7"]
[EventCountry "GER"]
[SourceTitle "playchess.com"]
[Source "ChessBase"]
[SourceQuality "1"]
[TimeControl "30/5400+30:0"]

1. e4 {[%emt 0:00:00]} e6 {[%emt 0:00:00]} 2. d4 {[%emt 0:00:00]} d5 {[%emt 0:00:00]} 3. exd5 {[%emt 0:00:01]} exd5 {[%emt 0:00:00]} 4. Bd3 {[%emt 0:00:10]} Nc6 {[%emt 0:00:00]} 5. c3 {[%emt 0:00:13]} Bd6 {[%emt 0:00:00]} 6. Ne2 {[%emt 0:00:07]} Nge7 {[%emt 0:00:04]} 7. Bf4 {[%emt 0:00:25]} Be6 {[%emt 0:00:10]} 8. O-O {[%emt 0:00:20]} f6 {[%emt 0:00:24]} 9. Nd2 {[%emt 0:01:02]} Qd7 {[%emt 0:00:19]} 10. Nf3 {[%emt 0:00:51]} O-O-O {[%emt 0:02:19]} 11. b4 {[%emt 0:00:48]} g5 {[%emt 0:00:07]} 12. Bxd6 {[%emt 0:01:11]} Qxd6 {[%emt 0:00:34]} 13. a4 {[%emt 0:01:26]} h5 {[%emt 0:04:35]} 14. a5 {[%emt 0:02:39]} Nf5 {[%emt 0:26:54]} 15. Ng3 {[%emt 0:02:45]} Nxg3 {[%emt 0:02:38]} 16. fxg3 {[%emt 0:00:20]} h4 {[%emt 0:01:34]} 17. gxh4 {[%emt 0:03:48]} gxh4 {[%emt 0:00:23]} 18. b5 {[%emt 0:01:20]} Ne7 {[%emt 0:06:10]} 19. Nd2 {[%emt 0:00:59]} Bd7 {[%emt 0:03:37]} 20. Nb3 {[%emt 0:01:27]} Rdg8 {[%emt 0:02:15]} 21. Kh1 {[%emt 0:00:46]} f5 {[%emt 0:10:23]} 22. Nc5 {[%emt 0:04:16]} f4 {[%emt 0:05:12]} 23. Nxd7 {[%emt 0:00:30]} h3 {[%emt 0:02:37]} 24. gxh3 {[%emt 0:03:54]} Rxh3 {[%emt 0:02:13]} 25. Ne5 {[%emt 0:01:14]} Rxh2+ {[%emt 0:00:17]} 0-1

[Event "GER-chT Youth Countries 2020"]
[Site "Berlin"]
[Date "2020.10.01"]
[Round "3"]
[White "Trunz, Michelle"]
[Black "Margaryan, Susanna"]
[Result "1/2-1/2"]
[ECO "D10"]
[WhiteElo "1662"]
[BlackElo "1450"]
[Annotator "NA"]
[PlyCount "80"]
[EventDate "2020.09.30"]
[EventType "team-tourn"]
[EventRounds "7"]
[EventCountry "GER"]
[SourceTitle "playchess.com"]
[Source "ChessBase"]
[SourceQuality "1"]
[TimeControl "30/5400+30:0"]

1. d4 {[%emt 0:00:00]} d5 {[%emt 0:00:00]} 2. c4 {[%emt 0:00:00]} c6 {[%emt 0:00:00]} 3. Nc3 {[%emt 0:00:00]} Nf6 {[%emt 0:00:01]} 4. Bg5 {[%emt 0:00:47]} a6 {[%emt 0:01:30]} 5. e3 {[%emt 0:00:21]} e6 {[%emt 0:01:10]} 6. a3 {[%emt 0:00:28]} b5 {[%emt 0:01:10]} 7. c5 {[%emt 0:00:23]} Be7 {[%emt 0:00:21]} 8. Bd3 {[%emt 0:00:27]} O-O {[%emt 0:00:54]} 9. Nf3 {[%emt 0:01:27]} Nbd7 {[%emt 0:01:15]} 10. O-O {[%emt 0:00:36]} Qc7 {[%emt 0:01:15]} 11. Qc2 {[%emt 0:03:00]} h6 {[%emt 0:02:18]} 12. Bh4 {[%emt 0:00:41]} Re8 {[%emt 0:04:11]} 13. Ne2 {[%emt 0:00:35]} Nh5 {[%emt 0:04:02]} 14. Bxe7 {[%emt 0:00:22]} Rxe7 {[%emt 0:00:17]} 15. Ng3 {[%emt 0:01:30]} Nxg3 {[%emt 0:00:35]} 16. hxg3 {[%emt 0:00:10]} e5 {[%emt 0:04:16]} 17. Be2 {[%emt 0:02:24]} e4 {[%emt 0:02:28]} 18. Nd2 {[%emt 0:01:51]} f5 {[%emt 0:05:02]} 19. b4 {[%emt 0:01:26]} g5 {[%emt 0:03:41]} 20. g4 {[%emt 0:01:02]} f4 {[%emt 0:01:59]} 21. Qb3 {[%emt 0:01:45]} Nf6 {[%emt 0:01:37]} 22. Qd1 {[%emt 0:03:06]} Kg7 {[%emt 0:03:54]} 23. Re1 {[%emt 0:02:23]} fxe3 {[%emt 0:00:41]} 24. fxe3 {[%emt 0:00:23]} Qd7 {[%emt 0:04:23]} 25. Rf1 {[%emt 0:02:40]} Nxg4 {[%emt 0:00:38]} 26. Bxg4 {[%emt 0:01:12]} Qxg4 {[%emt 0:00:08]} 27. Qxg4 {[%emt 0:00:06]} Bxg4 {[%emt 0:00:04]} 28. Nb3 {[%emt 0:01:18]} Rf8 {[%emt 0:08:15]} 29. Na5 {[%emt 0:00:28]} Bd7 {[%emt 0:02:11]} 30. Rxf8 {[%emt 0:01:16]} Kxf8 {[%emt 0:00:08]} 31. Rf1+ {[%emt 1:30:13]} Rf7 {[%emt 1:30:30]} 32. Rxf7+ {[%emt 0:01:24]} Kxf7 {[%emt 0:00:17]} 33. Kf2 {[%emt 0:00:04]} Kg6 {[%emt 0:03:09]} 34. g4 {[%emt 0:02:03]} h5 {[%emt 0:00:17]} 35. gxh5+ {[%emt 0:00:22]} Kxh5 {[%emt 0:00:07]} 36. Kg3 {[%emt 0:00:09]} Kg6 {[%emt 0:04:40]} 37. Nb7 {[%emt 0:00:27]} Kf6 {[%emt 0:01:37]} 38. Na5 {[%emt 0:00:42]} Kf5 {[%emt 0:09:23]} 39. Nb7 {[%emt 0:00:30]} Kg6 {[%emt 0:00:47]} 40. Nd6 {[%emt 0:01:52]} Kf6 {[%emt 0:00:55]} 1/2-1/2

[Event "GER-chT Youth Countries 2020"]
[Site "Berlin"]
[Date "2020.10.01"]
[Round "3"]
[White "Schiewe, Nadin"]
[Black "Huppert, Anna"]
[Result "1-0"]
[ECO "A40"]
[WhiteElo "1660"]
[BlackElo "1440"]
[Annotator "NA"]
[PlyCount "42"]
[EventDate "2020.09.30"]
[EventType "team-tourn"]
[EventRounds "7"]
[EventCountry "GER"]
[SourceTitle "playchess.com"]
[Source "ChessBase"]
[SourceQuality "1"]
[TimeControl "30/5400+30:0"]

1. d4 {[%emt 0:00:00]} e6 {[%emt 0:00:00]} 2. Nf3 {[%emt 0:00:00]} c5 {[%emt 0:02:06]} 3. e3 {[%emt 0:00:19]} d5 {[%emt 0:02:03]} 4. c3 {[%emt 0:00:38]} Nc6 {[%emt 0:04:13]} 5. Bd3 {[%emt 0:00:51]} Nf6 {[%emt 0:03:53]} 6. Nbd2 {[%emt 0:00:57]} Bd7 {[%emt 0:03:58]} 7. Qe2 {[%emt 0:04:02]} cxd4 {[%emt 0:07:04]} 8. exd4 {[%emt 0:00:54]} Bd6 {[%emt 0:04:24]} 9. Ne5 {[%emt 0:02:03]} Qc7 {[%emt 0:08:11]} 10. f4 O-O {[%emt 0:09:35]} 11. O-O {[%emt 0:03:05]} Be8 {[%emt 0:04:55]} 12. Rf3 {[%emt 0:03:00]} Nd7 {[%emt 0:11:44]} 13. Bxh7+ {[%emt 0:06:09]} Kh8 {[%emt 0:06:00]} 14. Nxd7 {[%emt 0:02:31]} g6 {[%emt 0:11:49]} 15. Nxf8 {[%emt 0:01:24]} Bxf8 {[%emt 0:00:40]} 16. Rh3 {[%emt 0:01:07]} Kg7 {[%emt 0:00:48]} 17. Qg4 {[%emt 0:02:30]} Be7 {[%emt 0:02:03]} 18. Nf3 {[%emt 0:01:55]} Bd7 {[%emt 0:06:22]} 19. Ne5 {[%emt 0:06:42]} Nxe5 {[%emt 0:04:33]} 20. fxe5 {[%emt 0:00:25]} Bc6 {[%emt 0:03:02]} 21. Bg5 {[%emt 0:03:10]} Rh8 {[%emt 0:01:23]} 1-0

[Event "GER-chT Youth Countries 2020"]
[Site "Berlin"]
[Date "2020.10.01"]
[Round "3"]
[White "Tovmasyan, Minas"]
[Black "Simon, Tessa"]
[Result "1/2-1/2"]
[ECO "D10"]
[WhiteElo "1658"]
[BlackElo "1860"]
[Annotator "NA"]
[PlyCount "108"]
[EventDate "2020.09.30"]
[EventType "team-tourn"]
[EventRounds "7"]
[EventCountry "GER"]
[SourceTitle "playchess.com"]
[Source "ChessBase"]
[SourceQuality "1"]
[TimeControl "30/5400+30:0"]

1. d4 {[%emt 0:00:00]} d5 {[%emt 0:00:00]} 2. c4 {[%emt 0:00:00]} c6 {[%emt 0:00:00]} 3. cxd5 {[%emt 0:00:00]} cxd5 {[%emt 0:00:00]} 4. Bf4 {[%emt 0:00:16]} Nc6 {[%emt 0:00:36]} 5. Nc3 {[%emt 0:01:28]} Nf6 {[%emt 0:00:12]} 6. e3 {[%emt 0:00:13]} a6 {[%emt 0:00:22]} 7. Bd3 {[%emt 0:13:42]} e6 {[%emt 0:02:27]} 8. a3 {[%emt 0:02:08]} Bd6 {[%emt 0:01:09]} 9. Bxd6 {[%emt 0:02:13]} Qxd6 {[%emt 0:00:05]} 10. f4 {[%emt 0:00:19]} b5 {[%emt 0:05:39]} 11. Nf3 {[%emt 0:07:38]} Na5 {[%emt 0:16:29]} 12. b3 {[%emt 0:21:28]} Ng4 {[%emt 0:06:11]} 13. Nd2 {[%emt 0:05:57]} h5 {[%emt 0:16:34]} 14. h3 {[%emt 0:07:03]} Nxe3 {[%emt 0:19:02]} 15. Qf3 {[%emt 0:04:25]} Nf5 {[%emt 0:01:41]} 16. Bxf5 {[%emt 0:01:22]} exf5 17. Qxd5 {[%emt 0:01:37]} Qxd5 {[%emt 0:04:17]} 18. Nxd5 {[%emt 0:00:02]} O-O {[%emt 0:01:58]} 19. b4 {[%emt 0:13:05]} Nc6 {[%emt 0:03:38]} 20. Nb6 {[%emt 0:03:09]} Rb8 {[%emt 0:02:00]} 21. Nxc8 {[%emt 0:00:24]} Rbxc8 {[%emt 0:01:51]} 22. Nb3 {[%emt 0:04:48]} Rfe8+ {[%emt 0:00:32]} 23. Kf2 {[%emt 0:01:22]} Rcd8 {[%emt 0:02:10]} 24. Rhe1 {[%emt 0:02:47]} Re4 {[%emt 0:04:58]} 25. Rxe4 {[%emt 0:02:23]} fxe4 {[%emt 0:00:07]} 26. Rc1 {[%emt 0:03:23]} Nxd4 {[%emt 0:08:26]} 27. Rd1 {[%emt 0:00:53]} e3+ {[%emt 0:00:33]} 28. Kxe3 {[%emt 0:00:56]} Nc2+ {[%emt 0:00:54]} 29. Ke2 {[%emt 0:00:05]} Re8+ {[%emt 0:00:40]} 30. Kf2 {[%emt 0:00:54]} Nxa3 {[%emt 0:00:21]} 31. Nc5 {[%emt 1:30:43]} Nc2 {[%emt 1:31:04]} 32. Nxa6 {[%emt 0:00:40]} Re4 {[%emt 0:00:23]} 33. Rd2 {[%emt 0:00:29]} Nxb4 {[%emt 0:00:38]} 34. Kf3 {[%emt 0:00:34]} Rc4 {[%emt 0:00:30]} 35. Nxb4 {[%emt 0:00:29]} Rxb4 {[%emt 0:00:01]} 36. f5 {[%emt 0:00:32]} Kf8 {[%emt 0:01:12]} 37. Re2 {[%emt 0:00:27]} Rc4 {[%emt 0:00:37]} 38. g4 {[%emt 0:00:31]} hxg4+ {[%emt 0:00:47]} 39. hxg4 {[%emt 0:00:01]} f6 {[%emt 0:00:39]} 40. Ra2 {[%emt 0:00:55]} Kf7 {[%emt 0:00:39]} 41. Ra7+ {[%emt 0:00:00]} Kg8 {[%emt 0:00:00]} 42. Rb7 {[%emt 0:00:00]} b4 {[%emt 0:00:00]} 43. Kg3 {[%emt 0:00:00]} Kh7 {[%emt 0:00:00]} 44. Kh4 {[%emt 0:00:00]} Rd4 {[%emt 0:00:00]} 45. Rb8 {[%emt 0:00:00]} Rf4 {[%emt 0:00:00]} 46. Kg3 {[%emt 0:00:00]} Rc4 {[%emt 0:00:00]} 47. Kh4 {[%emt 0:00:00]} Rd4 {[%emt 0:00:00]} 48. Rb7 {[%emt 0:00:00]} Kh6 {[%emt 0:00:00]} 49. Rb8 {[%emt 0:00:00]} g5+ {[%emt 0:00:00]} 50. Kg3 {[%emt 0:00:00]} Rd3+ {[%emt 0:00:00]} 51. Kg2 {[%emt 0:00:00]} b3 {[%emt 0:00:00]} 52. Rb7 {[%emt 0:01:01]} Rd2+ {[%emt 0:00:00]} 53. Kg3 {[%emt 0:00:51]} b2 {[%emt 0:00:00]} 54. Kh3 {[%emt 0:01:07]} Rd3+ {[%emt 0:00:00]} 1/2-1/2

[Event "GER-chT Youth Countries 2020"]
[Site "Berlin"]
[Date "2020.10.01"]
[Round "3"]
[White "Wilmink, Anna"]
[Black "Haug, Mara"]
[Result "1-0"]
[ECO "B35"]
[WhiteElo "1608"]
[BlackElo "1366"]
[Annotator "NA"]
[PlyCount "68"]
[EventDate "2020.09.30"]
[EventType "team-tourn"]
[EventRounds "7"]
[EventCountry "GER"]
[SourceTitle "playchess.com"]
[Source "ChessBase"]
[SourceQuality "1"]
[TimeControl "30/5400+30:0"]

1. e4 {[%emt 0:00:00]} c5 {[%emt 0:00:00]} 2. Nf3 {[%emt 0:00:00]} Nc6 {[%emt 0:00:00]} 3. d4 {[%emt 0:00:00]} cxd4 {[%emt 0:00:00]} 4. Nxd4 {[%emt 0:00:00]} g6 {[%emt 0:00:00]} 5. Nc3 {[%emt 0:00:00]} Bg7 {[%emt 0:00:00]} 6. Be3 {[%emt 0:00:02]} Nf6 {[%emt 0:00:03]} 7. Bc4 {[%emt 0:00:13]} Qa5 {[%emt 0:00:04]} 8. O-O {[%emt 0:04:52]} O-O {[%emt 0:00:31]} 9. Bb3 {[%emt 0:01:08]} d6 {[%emt 0:02:23]} 10. f3 {[%emt 0:01:03]} Bd7 {[%emt 0:04:08]} 11. Qd2 {[%emt 0:01:38]} Rfe8 {[%emt 0:04:40]} 12. h3 {[%emt 0:01:51]} a6 {[%emt 0:06:43]} 13. Rad1 {[%emt 0:02:28]} Qc7 {[%emt 0:08:43]} 14. f4 {[%emt 0:02:43]} Na5 {[%emt 0:22:21]} 15. f5 {[%emt 0:04:09]} Nxb3 {[%emt 0:01:24]} 16. axb3 {[%emt 0:00:30]} Bc6 17. fxg6 {[%emt 0:03:58]} fxg6 {[%emt 0:07:24]} 18. Ne6 {[%emt 0:02:53]} Qd7 {[%emt 0:06:26]} 19. Nxg7 {[%emt 0:00:57]} Kxg7 {[%emt 0:00:08]} 20. Nd5 {[%emt 0:02:42]} Bxd5 {[%emt 0:06:47]} 21. exd5 {[%emt 0:01:25]} Kg8 {[%emt 0:03:23]} 22. Bh6 {[%emt 0:04:22]} Rac8 {[%emt 0:03:09]} 23. c4 {[%emt 0:01:59]} Qc7 {[%emt 0:01:15]} 24. Qc3 {[%emt 0:05:09]} b5 {[%emt 0:02:11]} 25. Rc1 {[%emt 0:03:57]} Qd8 {[%emt 0:05:34]} 26. g4 {[%emt 0:02:32]} Qd7 {[%emt 0:03:25]} 27. Rf4 {[%emt 0:03:05]} Rc5 {[%emt 0:02:04]} 28. Rcf1 {[%emt 0:02:14]} Qa7 {[%emt 0:02:16]} 29. Kh1 {[%emt 0:02:02]} Rcc8 {[%emt 0:01:10]} 30. h4 {[%emt 0:03:00]} bxc4 {[%emt 0:02:07]} 31. bxc4 {[%emt 1:32:09]} Qb7 {[%emt 1:31:10]} 32. h5 {[%emt 0:01:54]} Rb8 {[%emt 0:03:04]} 33. R1f2 {[%emt 0:02:57]} Qb3 {[%emt 0:00:45]} 34. Qe1 {[%emt 0:05:53]} Qd3 {[%emt 0:01:44]} 1-0